fUST/lending_fUST_20251204
["ID","MTS","AMOUNT","RATE_DAILY","PERIOD"]
[396224512,1764836992353,639.04,0.00017833,30]
[396224534,1764837032666,-454.60640962,9.351e-05,2]
[396224541,1764837039396,-1040.03002027,9.351e-05,2]
[396224542,1764837039408,-350.70986946,9.351e-05,2]
[396224543,1764837039423,-2110.38370065,9.351e-05,2]
[396224544,1764837039432,-3727.73,9.445e-05,2]
[396224545,1764837039444,-228.0,9.445e-05,2]
[396224546,1764837039454,-1200.0,9.822e-05,2]
[396224547,1764837039463,-4473.27,9.823e-05,2]
[396224548,1764837039473,-300.0,9.935e-05,2]
[396224549,1764837039483,-7.77806,9.936e-05,2]
[396224550,1764837039492,-300.0,9.936e-05,2]
[396224551,1764837039502,-300.0,9.936e-05,2]
[396224552,1764837039512,-300.0,9.936e-05,2]
[396224553,1764837039522,-300.0,9.936e-05,2]
[396224554,1764837039532,-300.0,9.936e-05,2]
[396224555,1764837039541,-300.0,9.936e-05,2]
[396224556,1764837039550,-300.0,9.936e-05,2]
[396224557,1764837039560,-300.0,9.936e-05,2]
[396224558,1764837039570,-300.0,9.936e-05,2]
[396224559,1764837039579,-300.0,9.936e-05,2]
[396224560,1764837039589,-300.0,9.936e-05,2]
[396224561,1764837039599,-300.0,9.936e-05,2]
[396224562,1764837039609,-5218.82,0.00010201,2]
[396224563,1764837039618,-600.0,0.00010304,2]
[396224564,1764837039628,-5964.37,0.00010578,2]
[396224565,1764837039637,-1680.0,0.00010804,2]
[396224566,1764837039647,-420.0,0.00010929,2]
[396224567,1764837039658,-6709.91,0.00010956,2]
[396224568,1764837039667,-212.76807634,0.0001121,2]
[396224569,1764837039677,-720.0,0.00011334,2]
[396224570,1764837039686,-7455.46,0.00011334,2]
[396224571,1764837039695,-300.0,0.00012021,2]
[396224572,1764837039705,-212.76807634,0.00012073,2]
[396224573,1764837039713,-3991.19590629,0.00012132,2]
[396224574,1764837039721,-150.0,0.00012173,2]
[396224575,1764837039730,-377.00595412,0.00012381,2]
[396224576,1764837039739,-241.23633718,0.00012381,2]
[396224577,1764837039748,-236.92172311,0.00012381,2]
[396224578,1764837039757,-228.06738051,0.00012381,2]
[396224579,1764837039766,-135920.815417,0.00012382,2]
[396224580,1764837039779,-1923.64296067,0.00012382,2]
[396224581,1764837039789,-2543.33468453,0.00012382,2]
[396224850,1764837043657,-625.78505773,0.00012382,2]
[396224851,1764837043670,-46598.0,0.00012382,2]
[396224852,1764837046578,-383.53,0.00012382,2]
[396224853,1764837046642,-571.34677434,0.00012382,2]
[396224861,1764837062969,211.46,7.893e-05,2]
[396224862,1764837063382,422.93,8.269e-05,2]
[396224863,1764837063797,634.39,8.645e-05,2]
[396224864,1764837064200,845.86,9.02e-05,2]
[396224865,1764837068245,150.0,0.00017803,30]
[396224866,1764837138451,300.0,0.00018,30]
[396224867,1764837142644,182.64,7.722e-05,2]
[396224868,1764837143074,365.28,8.089e-05,2]
[396224869,1764837143487,547.92,8.457e-05,2]
[396224870,1764837143896,730.56,8.825e-05,2]
[396224871,1764837144341,913.21,9.193e-05,2]
[396224872,1764837221102,150.0,7.722e-05,2]
[396224873,1764837221515,295.55,8.09e-05,2]
[396224874,1764837221950,443.32,8.457e-05,2]
[396224875,1764837222320,591.09,8.825e-05,2]
[396224876,1764837222723,738.87,9.193e-05,2]
[396224877,1764837225248,150.0,0.00015316,30]
[396224878,1764837225668,150.0,0.00016045,30]
[396224879,1764837226067,189.99,0.00016775,30]
[396224880,1764837226475,253.33,0.00017504,30]
[396224881,1764837232812,10000.0,0.000141,10]
[396224882,1764837241139,10000.0,0.000141,10]
[396224883,1764837261484,6283.0,0.000141,10]
[396224884,1764837297890,150.0,7.708e-05,2]
[396224885,1764837298365,220.15,8.075e-05,2]
[396224886,1764837298857,330.22,8.442e-05,2]
[396224887,1764837299247,440.29,8.809e-05,2]
[396224888,1764837299654,550.37,9.176e-05,2]
[396224889,1764837302092,150.0,0.00016825,30]
[396224890,1764837302514,150.0,0.00017626,30]
[396224891,1764837376737,150.0,7.711e-05,2]
[396224892,1764837377155,169.47,8.078e-05,2]
[396224893,1764837377587,254.2,8.445e-05,2]
[396224894,1764837377979,338.93,8.812e-05,2]
[396224895,1764837378425,423.66,9.179e-05,2]
[396224896,1764837443988,366.95,9.182e-05,2]
[396224897,1764837453695,158.49,7.71e-05,2]
[396224898,1764837454128,316.98,8.077e-05,2]
[396224899,1764837454526,475.46,8.444e-05,2]
[396224900,1764837454946,633.95,8.812e-05,2]
[396224901,1764837455345,792.44,9.179e-05,2]
[396224902,1764837531714,150.0,7.886e-05,2]
[396224903,1764837532125,256.46,8.262e-05,2]
[396224904,1764837532563,384.69,8.638e-05,2]
[396224905,1764837532948,512.93,9.013e-05,2]
[396224906,1764837610048,150.0,7.715e-05,2]
[396224907,1764837610446,223.27,8.083e-05,2]
[396224908,1764837610852,334.9,8.45e-05,2]
[396224909,1764837611262,446.54,8.817e-05,2]
[396224910,1764837611664,558.17,9.185e-05,2]
[396224911,1764837629042,227.0,9.182e-05,2]
[396224912,1764837651656,227.0,9.182e-05,2]
[396224913,1764837674390,227.0,9.182e-05,2]
[396224914,1764837688575,150.0,7.712e-05,2]
[396224915,1764837689022,179.67,8.079e-05,2]
[396224916,1764837689436,269.5,8.447e-05,2]
[396224917,1764837689844,359.33,8.814e-05,2]
[396224918,1764837690242,449.17,9.181e-05,2]
[396224919,1764837696707,227.0,9.182e-05,2]
[396224920,1764837720187,227.0,9.182e-05,2]
[396224921,1764837741848,227.0,9.182e-05,2]
[396224922,1764837764495,227.0,9.182e-05,2]
[396224923,1764837767073,150.0,7.708e-05,2]
[396224924,1764837767473,150.0,8.075e-05,2]
[396224925,1764837768339,215.75,8.442e-05,2]
[396224926,1764837768786,287.67,8.809e-05,2]
[396224927,1764837769177,359.59,9.176e-05,2]
[396224928,1764837771598,150.0,0.00016972,30]
[396224929,1764837772014,150.0,0.0001778,30]
[396224930,1764837787105,227.0,9.182e-05,2]
[396224931,1764837809353,227.0,9.182e-05,2]
[396224932,1764837831990,227.0,9.182e-05,2]
[396224933,1764837843869,150.0,7.708e-05,2]
[396224934,1764837844287,150.0,8.075e-05,2]
[396224935,1764837844690,159.89,8.442e-05,2]
[396224936,1764837845558,213.19,8.809e-05,2]
[396224937,1764837846020,266.49,9.176e-05,2]
[396224938,1764837854713,227.0,9.182e-05,2]
[396224939,1764837877580,227.0,9.182e-05,2]
[396224940,1764837899770,227.0,9.182e-05,2]
[396224941,1764837919891,150.0,7.734e-05,2]
[396224942,1764837920304,150.0,8.102e-05,2]
[396224943,1764837921156,150.0,8.471e-05,2]
[396224944,1764837921544,165.36,8.839e-05,2]
[396224945,1764837921949,206.7,9.207e-05,2]
[396224946,1764837922155,227.0,9.182e-05,2]
[396224947,1764837944738,227.0,9.182e-05,2]
[396224948,1764837990125,-227.0,9.275e-05,2]
[396224949,1764837990148,-150.0,9.346e-05,2]
[396224950,1764837990173,-248.04,9.575e-05,2]
[396224951,1764837990194,-289.38,9.944e-05,2]
[396224952,1764837990217,-330.72,0.00010312,2]
[396224953,1764837990239,-372.06,0.0001068,2]
[396224954,1764837990260,-413.4,0.00011049,2]
[396224955,1764837990280,-177.0,0.00011346,2]
[396224956,1764837990299,-1980.6573491,0.0001191,2]
[396224957,1764837990318,-300.0,0.00012046,2]
[396224958,1764837990337,-2674.6136009,0.00012047,2]
[396224959,1764837994177,150.0,7.749e-05,2]
[396224960,1764837995102,150.0,8.118e-05,2]
[396224961,1764837995196,150.0,8.487e-05,2]
[396224962,1764837995596,150.0,8.856e-05,2]
[396224963,1764837995989,154.38,9.225e-05,2]
[396224975,1764838231577,-1367.85548054,0.00011445,2]
[396224977,1764838231587,-561.45403909,0.00011445,2]
[396224979,1764838231597,-1010.61727036,0.00011445,2]
[396224981,1764838231607,-1796.65292509,0.00011445,2]
[396224983,1764838231616,-1200.0,0.00012046,2]
[396224985,1764838231626,-300.0,0.00012046,2]
[396224987,1764838231635,-249.0,0.00012046,2]
[396224989,1764838231645,-1200.0,0.00012046,2]
[396224991,1764838231654,-1353.38520132,0.00012048,2]
[396224993,1764838231664,-150.0,0.00012085,2]
[396224995,1764838231673,-50000.0,0.00012118,2]
[396224997,1764838231682,-454.31522783,0.00012118,2]
[396224999,1764838231691,-271.30698193,0.00012118,2]
[396225000,1764838231700,-394.67299695,0.00012123,2]
[396225002,1764838231714,-500.0,0.00012123,2]
[396225004,1764838231723,-500.0,0.00012123,2]
[396225006,1764838231733,-500.0,0.00012123,2]
[396225008,1764838231742,-500.0,0.00012123,2]
[396225010,1764838231752,-500.0,0.00012123,2]
[396225012,1764838231761,-500.0,0.00012123,2]
[396225014,1764838231770,-500.0,0.00012123,2]
[396225016,1764838231781,-373.49014876,0.00012123,2]
[396225018,1764838231790,-500.0,0.00012123,2]
[396225020,1764838231799,-498.51862732,0.00012123,2]
[396225022,1764838231808,-500.0,0.00012123,2]
[396225024,1764838231818,-500.0,0.00012123,2]
[396225026,1764838231827,-533.59574747,0.00012123,2]
[396225027,1764838231837,-547.44897197,0.00012123,2]
[396225028,1764838231846,-500.0,0.00012123,2]
[396225029,1764838231855,-500.0,0.00012123,2]
[396225030,1764838231864,-500.0,0.00012123,2]
[396225031,1764838231874,-500.0,0.00012123,2]
[396225032,1764838231883,-500.0,0.00012123,2]
[396225033,1764838231892,-500.0,0.00012123,2]
[396225034,1764838231901,-500.0,0.00012123,2]
[396225035,1764838231911,-500.0,0.00012123,2]
[396225036,1764838231922,-500.0,0.00012123,2]
[396225037,1764838231931,-500.0,0.00012123,2]
[396225038,1764838231941,-500.0,0.00012123,2]
[396225039,1764838231951,-500.0,0.00012123,2]
[396225040,1764838231960,-500.0,0.00012123,2]
[396225041,1764838231969,-500.0,0.00012123,2]
[396225042,1764838231979,-500.0,0.00012123,2]
[396225043,1764838231988,-500.0,0.00012123,2]
[396225044,1764838231999,-500.0,0.00012123,2]
[396225045,1764838232009,-500.0,0.00012123,2]
[396225046,1764838232019,-500.0,0.00012123,2]
[396225047,1764838232030,-500.0,0.00012123,2]
[396225048,1764838232039,-500.0,0.00012124,2]
[396225049,1764838232049,-513.90416788,0.00012124,2]
[396225050,1764838232060,-493.02997843,0.00012124,2]
[396225051,1764838232070,-207694.76879206,0.00012125,2]
[396225056,1764838237855,-2807.27019545,0.00011445,2]
[396225057,1764838237865,-300.0,0.00011672,2]
[396225058,1764838237875,-177.87958473,0.00011672,2]
[396225081,1764838239896,-122.12041527,0.00011672,2]
[396225083,1764838239906,-300.0,0.00011672,2]
[396225085,1764838239915,-300.0,0.00011672,2]
[396225087,1764838239925,-300.0,0.00011672,2]
[396225089,1764838239935,-300.0,0.00011672,2]
[396225091,1764838239945,-300.0,0.00011672,2]
[396225094,1764838239955,-300.0,0.00011672,2]
[396225096,1764838239965,-300.0,0.00011672,2]
[396225115,1764838239974,-300.0,0.00011672,2]
[396225118,1764838240225,-300.0,0.00011672,2]
[396225120,1764838240239,-300.0,0.00011672,2]
[396225121,1764838240248,-42443.33603111,0.00012125,2]
[396225352,1764838242987,-300.0,0.00011672,2]
[396225354,1764838242996,-300.0,0.00011672,2]
[396225356,1764838243005,-300.0,0.00011672,2]
[396225358,1764838243014,-57314.41750697,0.00012125,2]
[396225360,1764838243025,-500.16552,0.00012125,2]
[396225362,1764838243036,-448824.03036161,0.00012125,2]
[396225364,1764838243047,-36877.65640394,0.00012125,2]
[396225381,1764838243198,-795.87455,0.00012125,2]
[396225402,1764838267995,-150.0,0.00015,10]
[396225403,1764838269366,-150.0,0.00015,10]
[396225404,1764838270735,-150.0,0.00015,10]
[396225405,1764838275699,-150.0,0.00015,10]
[396225406,1764838280522,-150.0,0.00015,10]
[396225422,1764839431832,-394.0,0.00011349,2]
[396225423,1764839431845,-244.0,0.00011464,2]
[396225424,1764839431861,-150.0,0.00011581,2]
[396225425,1764839431872,-300.0,0.00011998,2]
[396225426,1764839431882,-300.0,0.00011998,2]
[396225427,1764839431892,-1008.0,0.00011998,2]
[396225428,1764839431903,-299.93499411,0.00011999,2]
[396225429,1764839431914,-82.59593355,0.00011999,2]
[396225430,1764839431927,-417.40406645,0.00011999,2]
[396225431,1764839431937,-500.0,0.00011999,2]
[396225432,1764839431949,-453.92962142,0.00011999,2]
[396225433,1764839431959,-500.0,0.00011999,2]
[396225434,1764839431970,-176.15704108,0.00011999,2]
[396225435,1764839431981,-500.0,0.00011999,2]
[396225436,1764839431991,-500.0,0.00011999,2]
[396225437,1764839432002,-500.0,0.00011999,2]
[396225438,1764839432013,-500.0,0.00011999,2]
[396225439,1764839432497,-23955.02070377,0.00012,2]
[396225440,1764839432531,-283.32353234,0.00012,2]
[396225441,1764839432556,-52201.81899985,0.00012,2]
[396225442,1764839432567,-500.0,0.00012024,2]
[396225443,1764839432577,-564.70260595,0.00012024,2]
[396225444,1764839432586,-209.73291752,0.00012024,2]
[396225445,1764839432595,-99523.74547668,0.00012025,2]
[396225453,1764839437923,-147835.36582226,0.00012025,2]
[396225490,1764839440088,-82817.01512464,0.00012025,2]
[396225497,1764839440155,-9774.91042084,0.00012025,2]
[396226055,1764839445937,-277.312261,0.00012025,2]
[396226067,1764839446047,-1560.0,0.00012025,2]
[396226247,1764839773307,-162.534,0.00011666,2]
[396226248,1764839773337,-162.534,0.00011784,2]
[396226249,1764839773365,-150.0,0.00011845,2]
[396226250,1764839773394,-300.0,0.00012017,2]
[396226251,1764839773421,-153.42343389,0.00012018,2]
[396226252,1764839773449,-1000.0,0.00012018,2]
[396226253,1764839773478,-1000.0,0.00012018,2]
[396226254,1764839773506,-1000.0,0.00012018,2]
[396226255,1764839773533,-1000.0,0.00012018,2]
[396226256,1764839773792,-1000.0,0.00012018,2]
[396226257,1764839773819,-1000.0,0.00012018,2]
[396226258,1764839773846,-1000.0,0.00012018,2]
[396226259,1764839773876,-873.36801934,0.00012018,2]
[396226260,1764839773906,-151.0,0.00012018,2]
[396226261,1764839773933,-151.0,0.00012018,2]
[396226262,1764839773961,-151.0,0.00012018,2]
[396226263,1764839773989,-151.0,0.00012018,2]
[396226264,1764839774018,-151.0,0.00012018,2]
[396226265,1764839774045,-151.0,0.00012018,2]
[396226266,1764839774074,-151.0,0.00012018,2]
[396226267,1764839774258,-151.0,0.00012018,2]
[396226268,1764839774286,-151.0,0.00012018,2]
[396226269,1764839774314,-151.0,0.00012018,2]
[396226270,1764839774343,-151.0,0.00012018,2]
[396226271,1764839774372,-151.0,0.00012018,2]
[396226272,1764839774399,-151.0,0.00012018,2]
[396226273,1764839774428,-151.0,0.00012018,2]
[396226274,1764839774456,-151.0,0.00012018,2]
[396226275,1764839774484,-151.0,0.00012018,2]
[396226276,1764839774513,-151.0,0.00012018,2]
[396226277,1764839774542,-151.0,0.00012018,2]
[396226278,1764839774569,-151.0,0.00012018,2]
[396226279,1764839774599,-151.95861838,0.00012018,2]
[396226280,1764839774628,-241.79522679,0.00012024,2]
[396226281,1764839774659,-217.10329127,0.00012024,2]
[396226282,1764839774687,-1200.0,0.00012024,2]
[396226283,1764839774716,-191.0,0.00012024,2]
[396226284,1764839774745,-300.0,0.00012024,2]
[396226285,1764839775024,-572.29572712,0.00012024,2]
[396226286,1764839775076,-627.70427288,0.00012024,2]
[396226287,1764839776544,-8863.69074612,0.00012025,2]
[396226288,1764839776579,-10000.01,0.00012025,2]
[396226289,1764839776598,-10000.01,0.00012025,2]
[396226290,1764839776619,-10000.01,0.00012025,2]
[396226291,1764839776640,-10000.01,0.00012025,2]
[396226292,1764839776657,-10000.01,0.00012025,2]
[396226293,1764839776685,-10000.01,0.00012025,2]
[396226294,1764839776706,-10000.01,0.00012025,2]
[396226295,1764839776719,-10000.01,0.00012025,2]
[396226296,1764839776735,-10000.01,0.00012025,2]
[396226297,1764839776763,-10000.01,0.00012025,2]
[396226298,1764839779323,-10000.01,0.00012025,2]
[396226299,1764839779457,-10000.01,0.00012025,2]
[396226300,1764839779568,-10000.01,0.00012025,2]
[396226301,1764839779671,-10000.01,0.00012025,2]
[396226302,1764839779788,-10000.01,0.00012025,2]
[396226303,1764839779892,-10000.01,0.00012025,2]
[396226304,1764839780077,-10000.01,0.00012025,2]
[396226305,1764839780226,-10000.01,0.00012025,2]
[396226306,1764839780334,-10000.01,0.00012025,2]
[396226307,1764839780530,-10000.01,0.00012025,2]
[396226308,1764839780646,-10000.01,0.00012025,2]
[396226309,1764839780770,-10000.01,0.00012025,2]
[396226310,1764839780883,-10000.01,0.00012025,2]
[396226311,1764839781009,-10000.01,0.00012025,2]
[396226312,1764839781773,-276.71311477,0.00011905,2]
[396226313,1764839781785,-9723.29688523,0.00012025,2]
[396226318,1764840264368,-841.59861121,0.00010985,2]
[396226319,1764840264397,-150.0,0.00011041,2]
[396226320,1764840264426,-841.59861121,0.00011096,2]
[396226321,1764840264454,-841.59861121,0.00011208,2]
[396226322,1764840264482,-243.0,0.00011321,2]
[396226323,1764840264510,-395.97764457,0.00011771,2]
[396226324,1764840264540,-1200.0,0.00011923,2]
[396226325,1764840264569,-300.0,0.00011923,2]
[396226326,1764840264702,-372.4630436,0.00011924,2]
[396226327,1764840265495,-127.5369564,0.00011924,2]
[396226328,1764840265524,-514.49579612,0.00011924,2]
[396226329,1764840265552,-496.81304226,0.00011924,2]
[396226330,1764840265580,-500.0,0.00011924,2]
[396226331,1764840265607,-500.0,0.00011924,2]
[396226332,1764840265638,-500.0,0.00011924,2]
[396226333,1764840265669,-500.0,0.00011924,2]
[396226334,1764840265698,-500.0,0.00011924,2]
[396226335,1764840265726,-177.09365639,0.00011924,2]
[396226336,1764840265753,-500.0,0.00011924,2]
[396226337,1764840265782,-500.0,0.00011924,2]
[396226338,1764840265939,-368.13109766,0.00011924,2]
[396226339,1764840269282,-131.86890234,0.00011924,2]
[396226340,1764840269309,-432.75973913,0.00011924,2]
[396226341,1764840269340,-500.0,0.00011924,2]
[396226342,1764840269367,-500.0,0.00011924,2]
[396226343,1764840269394,-500.0,0.00011924,2]
[396226344,1764840269420,-500.0,0.00011924,2]
[396226345,1764840269446,-509.3456151,0.00011924,2]
[396226346,1764840269474,-500.0,0.00011924,2]
[396226347,1764840269502,-500.0,0.00011924,2]
[396226348,1764840269528,-612.64281018,0.00011924,2]
[396226349,1764840269556,-126.7758665,0.00011924,2]
[396226350,1764840269664,-373.2241335,0.00011924,2]
[396226351,1764840269692,-500.0,0.00011924,2]
[396226352,1764840269719,-500.0,0.00011924,2]
[396226353,1764840269747,-500.0,0.00011924,2]
[396226354,1764840269774,-500.0,0.00011924,2]
[396226355,1764840269802,-500.0,0.00011924,2]
[396226356,1764840269829,-500.0,0.00011924,2]
[396226357,1764840269856,-500.0,0.00011924,2]
[396226358,1764840269883,-592.96095937,0.00011924,2]
[396226359,1764840269911,-500.0,0.00011924,2]
[396226360,1764840270004,-500.0,0.00011924,2]
[396226361,1764840270032,-500.0,0.00011924,2]
[396226362,1764840270060,-500.0,0.00011924,2]
[396226363,1764840270088,-500.0,0.00011924,2]
[396226364,1764840270117,-500.0,0.00011924,2]
[396226365,1764840270146,-500.0,0.00011924,2]
[396226366,1764840270173,-500.0,0.00011924,2]
[396226367,1764840270202,-500.0,0.00011924,2]
[396226368,1764840270230,-635.47581223,0.00011924,2]
[396226369,1764840270259,-229.05837554,0.00011924,2]
[396226370,1764840270381,-270.94162446,0.00011924,2]
[396226371,1764840270410,-500.0,0.00011924,2]
[396226372,1764840270437,-500.0,0.00011924,2]
[396226373,1764840270465,-500.0,0.00011924,2]
[396226374,1764840270493,-500.0,0.00011924,2]
[396226375,1764840270520,-500.0,0.00011924,2]
[396226376,1764840270547,-500.0,0.00011924,2]
[396226377,1764840270574,-409.85080488,0.00011924,2]
[396226378,1764840270602,-500.0,0.00011924,2]
[396226379,1764840270846,-500.0,0.00011924,2]
[396226380,1764840270875,-138.42514132,0.00011924,2]
[396226381,1764840270974,-361.57485868,0.00011924,2]
[396226382,1764840271003,-500.0,0.00011924,2]
[396226383,1764840271030,-500.0,0.00011924,2]
[396226384,1764840271059,-500.0,0.00011924,2]
[396226385,1764840271087,-500.0,0.00011924,2]
[396226386,1764840271118,-500.0,0.00011924,2]
[396226387,1764840271146,-500.0,0.00011924,2]
[396226388,1764840271179,-500.0,0.00011924,2]
[396226389,1764840271208,-500.0,0.00011924,2]
[396226390,1764840271237,-500.0,0.00011924,2]
[396226391,1764840271351,-500.0,0.00011924,2]
[396226392,1764840271380,-500.0,0.00011924,2]
[396226393,1764840271410,-529.02680764,0.00011924,2]
[396226394,1764840271438,-500.0,0.00011924,2]
[396226395,1764840271469,-500.0,0.00011924,2]
[396226396,1764840271497,-500.0,0.00011924,2]
[396226397,1764840271530,-500.0,0.00011924,2]
[396226398,1764840271556,-500.0,0.00011924,2]
[396226399,1764840271583,-230.97485057,0.00011924,2]
[396226400,1764840271615,-500.0,0.00011924,2]
[396226401,1764840271818,-500.0,0.00011924,2]
[396226402,1764840271849,-500.0,0.00011924,2]
[396226403,1764840271878,-500.0,0.00011924,2]
[396226404,1764840271906,-500.0,0.00011924,2]
[396226405,1764840271936,-500.0,0.00011924,2]
[396226406,1764840271963,-500.0,0.00011924,2]
[396226407,1764840271989,-500.0,0.00011924,2]
[396226408,1764840272016,-500.0,0.00011924,2]
[396226409,1764840272044,-500.0,0.00011924,2]
[396226410,1764840272071,-500.0,0.00011924,2]
[396226411,1764840272597,-300.0,0.00011924,2]
[396226412,1764840272624,-300.0,0.00011924,2]
[396226413,1764840272650,-300.0,0.00011924,2]
[396226414,1764840272677,-1200.0,0.00011924,2]
[396226415,1764840272704,-162.534,0.00011924,2]
[396226416,1764840273215,3399.15896856,0.00011805,2]
[396226417,1764840278735,5000.0,0.00011925,2]
[396226461,1764840632697,-1043.18865442,0.00011075,2]
[396226462,1764840632707,-241.0,0.00011075,2]
[396226463,1764840632716,-150.0,0.00011131,2]
[396226464,1764840632726,-1043.18865442,0.00011187,2]
[396226465,1764840632736,-1043.18865442,0.000113,2]
[396226466,1764840632746,-1895.61114858,0.00011415,2]
[396226467,1764840632755,-1200.0,0.00011516,2]
[396226468,1764840632764,-301.70151574,0.00011517,2]
[396226469,1764840632774,-344.80173227,0.00011517,2]
[396226470,1764840632784,-538.21395397,0.00011517,2]
[396226471,1764840632793,-1200.0,0.00011917,2]
[396226472,1764840632803,-300.0,0.00011917,2]
[396226473,1764840632812,-300.0,0.00011917,2]
[396226474,1764840632823,-300.0,0.00011917,2]
[396226475,1764840632832,-250.0,0.00011918,2]
[396226476,1764840632842,-500.0,0.00011918,2]
[396226477,1764840632853,-250.0,0.00011918,2]
[396226478,1764840632865,-500.0,0.00011918,2]
[396226479,1764840632875,-250.0,0.00011918,2]
[396226480,1764840632887,-500.0,0.00011918,2]
[396226481,1764840632896,-239.76297094,0.00011918,2]
[396226482,1764840632907,-500.0,0.00011918,2]
[396226483,1764840632917,-403.86572198,0.00011918,2]
[396226484,1764840632932,-500.0,0.00011918,2]
[396226485,1764840632942,-500.0,0.00011918,2]
[396226486,1764840632951,-500.0,0.00011918,2]
[396226487,1764840632961,-500.0,0.00011918,2]
[396226488,1764840632971,-500.0,0.00011918,2]
[396226489,1764840632981,-500.0,0.00011918,2]
[396226490,1764840632991,-500.0,0.00011918,2]
[396226491,1764840633000,-500.0,0.00011918,2]
[396226492,1764840633010,-500.0,0.00011918,2]
[396226493,1764840633019,-500.0,0.00011918,2]
[396226494,1764840633028,-500.0,0.00011918,2]
[396226495,1764840633037,-500.0,0.00011918,2]
[396226496,1764840633047,-500.0,0.00011918,2]
[396226497,1764840633056,-500.0,0.00011918,2]
[396226498,1764840633066,-500.0,0.00011918,2]
[396226499,1764840633075,-500.0,0.00011918,2]
[396226500,1764840633085,-500.0,0.00011918,2]
[396226501,1764840633096,-500.0,0.00011918,2]
[396226502,1764840633105,-500.0,0.00011918,2]
[396226503,1764840633115,-500.0,0.00011918,2]
[396226504,1764840633124,-500.0,0.00011918,2]
[396226505,1764840633134,-500.0,0.00011918,2]
[396226506,1764840633143,-500.0,0.00011918,2]
[396226507,1764840633153,-500.0,0.00011918,2]
[396226508,1764840633162,-500.0,0.00011918,2]
[396226509,1764840633172,-500.0,0.00011918,2]
[396226510,1764840633182,-500.0,0.00011918,2]
[396226511,1764840633192,-500.0,0.00011918,2]
[396226512,1764840633202,-508.3651731,0.00011918,2]
[396226513,1764840633212,-500.0,0.00011918,2]
[396226514,1764840633222,-500.0,0.00011918,2]
[396226515,1764840633231,-500.0,0.00011918,2]
[396226516,1764840633241,-500.0,0.00011918,2]
[396226517,1764840633251,-500.0,0.00011918,2]
[396226518,1764840633261,-500.0,0.00011918,2]
[396226519,1764840633271,-500.0,0.00011918,2]
[396226520,1764840633281,-500.0,0.00011924,2]
[396226521,1764840633290,-476.7682238,0.00011924,2]
[396226522,1764840633300,-177.84138655,0.00011924,2]
[396226523,1764840633310,-259.14184394,0.00011924,2]
[396226524,1764840633321,-55547.6646248,0.00011925,2]
[396226525,1764840633334,-7914.86900854,0.00011925,2]
[396226531,1764840638197,-998.80874545,0.00011925,2]
[396226532,1764840638209,-361.0402447,0.00011925,2]
[396226533,1764840638221,-5000.0,0.00011925,2]
[396226560,1764840640268,-260.76561014,0.00011925,2]
[396226562,1764840640279,-350.0842972,0.00011925,2]
[396226564,1764840640291,-163384.69360444,0.00011925,2]
[396226721,1764840736915,-326.12099528,0.00011688,2]
[396226722,1764840736944,-300.0,0.00011805,2]
[396226723,1764840737013,-2311.14304088,0.00011806,2]